Cogmind - Beta 11.1 *** ADVENTURER MODE // 2022.06.04 @ 14:46:55 Player: Lyra Result: Destroyed by S-43 Plague with Heavy Machine Gun Performance ------------- Evolutions (7) 3500 Regions Visited (26) 5200 Robots Destroyed (84) 420 Value Destroyed (3776) 3776 Prototype IDs (52) 1040 Alien Tech Used (0) 0 Bonus (5358) 5358 TOTAL SCORE: 19294 Bonus ------- High Alert Combat Kills 568 Follower Combat Kills 1974 Aligned with FarCom 300 Met Data Miner 300 Met Imprinter 300 Met Warlord at Base 500 MAIN.C Attacked Warlord 500 Built Enhanced Grunts 300 A7 Reached Mainframe 300 Met R17 at Cetus 500 Friendly Fire -184 Cogmind --------- Core Integrity 0/1300 Matter 162/300 Energy 98/100 System Corruption 14% Temperature Cool (0) Movement Core (50) Location -3/Research Parts ------- > --- POWER (2) -------- (None) > --- PROPULSION (8) --- Heavy Treads Heavy Treads Biometal Medium Treads > --- UTILITY (9) ------ (None) > --- WEAPON (2) ------- (None) > --- INVENTORY (5) ---- Advanced Reaction Control System Improved Hardlight Generator Improved System Shield Tri-rail Accelerator Peak State ------------ > --- POWER ------------ Heavy Antimatter Reactor Particle Reactor > --- PROPULSION ------- Improved Heavy Treads Flexi-carbon Leg Flexi-carbon Leg Flexi-carbon Leg Enhanced Flexi-carbon Leg Enhanced Flexi-carbon Leg Myomer Leg > --- UTILITY ---------- Advanced Cooling System Large Storage Unit Spectral Analyzer Advanced Reaction Control System Improved Phase Shifter Centrium Medium Armor Plating Graphene Brace Improved Hacking Suite Improved System Shield > --- WEAPON ----------- Tesla Rifle Quantum Rifle > --- INVENTORY -------- Structural Scanner Improved Kinecellerator Advanced Thermal Shield Improved Hardlight Generator Advanced Shield Generator Improved Energy Mantle Antimissile System Improved Hacking Suite Improved Hacking Suite Improved System Shield Improved System Shield Tri-rail Accelerator Vortex Lance Vortex Lance [Rating: 145] Favorites ----------- Power Light Deuterium Engine Engine Light Deuterium Engine Power Core Light Nuclear Core Reactor Particle Reactor Propulsion Flexi-carbon Leg Treads Improved Treads Leg Flexi-carbon Leg Wheel Compact Wheel Flight Unit Flying Fortress v7 Utility Spectral Analyzer Device Advanced Cooling System Storage Large Storage Unit Processor Spectral Analyzer Hackware Improved Hacking Suite Protection Centrium Medium Armor Plating Weapon Great Axe Energy Gun Tesla Rifle Ballistic Gun Light Assault Rifle Ballistic Cannon Tri-rail Accelerator Launcher Improved Grenade Launcher Slashing Weapon Great Axe Piercing Weapon Vortex Lance Build | -11 -10 -10 -10 -9 -8 -7 -7 -7 -7 -6 -6 -6 -6 -6 -5 -5 -5 -5 -5 -4 -4 -4 -4 -4 -4 -3 ------- Run | Scr Mat Min Exi Min Mat Fac Low Low Zio Pro Fac Low Low Dat Pro Fac Upp Upp War Pro Fac Ext Cet Arc Hub Res Slots Evolved 14 | . . . . . 4 2 . . . . 2 . . . . 2 . . . . 2 . . . . 2 Power 1 | . . . . . . . . . . . . . . . . . . . . . 1 . . . . . Propulsion 6 | . . . . . 3 1 . . . . 1 . . . . 1 . . . . . . . . . . Utility 7 | . . . . . 1 1 . . . . 1 . . . . 1 . . . . 1 . . . . 2 Weapon . | . . . . . . . . . . . . . . . . . . . . . . . . . . . Parts Attached 164 | . 8 1 4 . 5 5 . 1 . 1 5 1 . . . 4 2 2 14 . 9 31 24 13 4 30 Power 13 | . 1 . . . 1 . . . . . . . . . . . . . . . 3 2 2 1 2 1 Engine 2 | . . . . . 1 . . . . . . . . . . . . . . . 1 . . . . . Core 2 | . 1 . . . . . . . . . . . . . . . . . . . . . 1 . . . Reactor 9 | . . . . . . . . . . . . . . . . . . . . . 2 2 1 1 2 1 Propulsion 46 | . 5 . 2 . 1 1 . . . . 2 . . . . 1 . . 4 . 1 12 7 3 1 6 Treads 13 | . . . . . . . . . . . . . . . . . . . . . . 6 1 2 1 3 Leg 14 | . . . . . . . . . . . . . . . . . . . . . . 6 6 1 . 1 Wheel 2 | . 2 . . . . . . . . . . . . . . . . . . . . . . . . . Hover . | . . . . . . . . . . . . . . . . . . . . . . . . . . . Flight 17 | . 3 . 2 . 1 1 . . . . 2 . . . . 1 . . 4 . 1 . . . . 2 Utility 76 | . 1 1 1 . 3 3 . 1 . . 2 1 . . . 3 2 2 8 . 5 12 9 7 . 15 Device 52 | . 1 . . . . 1 . . . . . 1 . . . 2 2 2 6 . 1 11 6 7 . 12 Storage 6 | . . . 1 . 3 1 . . . . . . . . . . . . . . 1 . . . . . Processor 4 | . . 1 . . . . . . . . 1 . . . . 1 . . 1 . . . . . . . Hackware 3 | . . . . . . . . . . . . . . . . . . . . . 1 . . . . 2 Protection 11 | . . . . . . 1 . 1 . . 1 . . . . . . . 1 . 2 1 3 . . 1 Artifact . | . . . . . . . . . . . . . . . . . . . . . . . . . . . Weapon 29 | . 1 . 1 . . 1 . . . 1 1 . . . . . . . 2 . . 5 6 2 1 8 Energy Gun 10 | . . . . . . . . . . . . . . . . . . . . . . 1 5 2 1 1 Energy Cannon . | . . . . . . . . . . . . . . . . . . . . . . . . . . . Ballistic Gun 1 | . 1 . . . . . . . . . . . . . . . . . . . . . . . . . Ballistic Cannon 3 | . . . . . . . . . . . . . . . . . . . . . . . . . . 3 Launcher 6 | . . . 1 . . . . . . 1 1 . . . . . . . . . . 2 1 . . . Special Weapon . | . . . . . . . . . . . . . . . . . . . . . . . . . . . Impact Weapon . | . . . . . . . . . . . . . . . . . . . . . . . . . . . Slashing Weapon 4 | . . . . . . 1 . . . . . . . . . . . . 1 . . 2 . . . . Piercing Weapon 5 | . . . . . . . . . . . . . . . . . . . 1 . . . . . . 4 Special Melee Weapon . | . . . . . . . . . . . . . . . . . . . . . . . . . . . Unidentified Prototypes 13 | . . . . . . . . . . . . . . . . . . . 7 . 1 . 4 . 1 . Corrupted Parts 5 | . . . . . . . . . . . . . . . . . . . . . . 3 1 1 . . System Corruption 28 | . . . . . . . . . . . . . . . . . . . . . . 24 3 1 . . Parts Lost 36 | . . . . . . . . 1 . . . . . . . . . 1 . . . 3 1 1 1 28 Power 2 | . . . . . . . . . . . . . . . . . . . . . . . . . . 2 Propulsion 14 | . . . . . . . . . . . . . . . . . . . . . . 3 1 . 1 9 Utility 16 | . . . . . . . . 1 . . . . . . . . . 1 . . . . . . . 14 Weapon 4 | . . . . . . . . . . . . . . . . . . . . . . . . 1 . 3 Highest Loss Streak 23 | . . . . . . . . 1 . . . . . . . . . 1 . . . 1 1 1 1 23 To Critical Strikes . | . . . . . . . . . . . . . . . . . . . . . . . . . . . Average Slot Usage (%) 80 | . 84 86 97 85 69 75 76 75 69 76 79 80 80 80 80 74 76 76 75 76 69 76 87 91 88 80 Engine 2 | . 7 . . . 5 7 7 7 7 7 6 6 6 6 6 5 5 5 5 5 1 . . . . . Core 1 | . 6 14 14 14 3 . . . . . . . . . . . . . . . . . 3 . . . Reactor 4 | . . . . . . . . . . . . . . . . . . . . . 3 5 6 9 10 7 Treads 3 | . . . . . . . . . . . . . . . . . . . . . . 11 5 8 5 4 Leg 11 | . 4 . . . . . . . . . . . . . . . . . . . . 8 29 31 30 22 Wheel 1 | . 22 . . . . . . . . . . . . . . . . . . . . . . . . . Flight 12 | . 1 28 28 28 18 23 23 23 23 23 26 26 26 26 26 23 23 23 23 23 21 9 . . . . Device 10 | . . 14 2 . . 6 7 7 7 7 6 6 6 6 6 5 11 17 14 11 6 12 13 14 15 17 Storage 5 | . 13 . 8 . 15 8 7 7 7 7 6 6 6 6 6 5 5 5 5 5 5 5 5 5 5 3 Processor 6 | . . 1 14 14 9 7 7 7 7 7 6 6 6 6 6 9 11 11 11 11 10 10 6 5 5 3 Hackware 1 | . . . . . . . . . . . . . . . . . . . . . 4 . . . . 7 Protection 4 | . . . . . . 5 7 6 7 7 12 13 13 13 13 11 5 . 1 5 5 1 4 5 5 3 Energy Gun 2 | . . . . . . . . . . . . . . . . . . . . . . 3 5 8 10 4 Ballistic Gun 2 | . 28 28 26 14 9 . . . . . . . . . . . . . . . . . . . . . Launcher 2 | . . . 1 14 9 7 7 7 . 7 6 6 6 6 6 5 5 5 5 5 5 1 3 . . . Slashing Weapon 2 | . . . . . . 6 7 7 7 7 6 6 6 6 6 5 5 5 5 5 5 4 . . . . Naked Turns 35 | . . . . . . . . . . . . . . . . . . . . . . . . . . 35 Heaviest Build 92 | 13 13 8 12 9 39 55 55 55 55 55 65 65 65 65 65 65 65 60 66 66 85 90 92 92 84 88 Greatest Support 141 | 20 32 8 9 9 55 59 59 59 59 59 65 65 65 65 65 72 72 72 75 75 85 120 136 136 136 141 Greatest Overweight (x) 8 | . 1 . 1 . . . . . . . . . . . . . . . . . . 3 1 . . 8 Average Overweight (x) . | . . . . . . . . . . . . . . . . . . . . . . . . . . . Largest Inventory Capacity 20 | . 8 5 8 5 15 20 20 20 20 20 20 20 20 20 20 20 20 20 20 20 20 15 15 15 15 15 Average Capacity 15 | . 7 5 6 5 10 19 20 20 20 20 20 20 20 20 20 20 20 20 20 20 16 15 15 15 15 14 Most Carried 20 | . 7 5 8 5 15 20 20 20 20 19 20 20 20 20 20 20 20 20 20 20 20 15 15 15 15 15 Average Carried 15 | . 6 4 6 5 8 18 20 19 19 19 19 20 19 20 20 19 20 19 19 20 15 14 14 14 14 12 Final Capacity 20 | 8 5 5 5 5 15 20 20 20 20 20 20 20 20 20 20 20 20 20 20 20 15 15 15 15 15 5 Final Carried 20 | 6 5 5 5 5 15 20 20 19 20 19 20 20 20 20 20 20 20 20 20 20 15 15 15 15 15 5 Class Distribution -------------------- 43% | Scavenger-Mutant 22% | Mutant 12% | Sprinter 9% | Scout 8% | Hacker-Sprinter 3% | Scavenger-Skirmisher Dominant Class ---------------- Mutant | -10/Materials Scavenger-Mutant | -10/Mines Scavenger-Mutant | -10/Exiles Mutant | -9/Mines Mutant | -8/Materials Mutant | -7/Factory Mutant | -7/Lower Caves Mutant | -7/Lower Caves Mutant | -7/Zion Mutant | -6/Proximity Caves Sprinter | -6/Factory Sprinter | -6/Lower Caves Sprinter | -6/Lower Caves Sprinter | -6/Data Miner Sprinter | -5/Proximity Caves Scout | -5/Factory Scout | -5/Upper Caves Scout | -5/Upper Caves Scout | -5/Warlord Scout | -4/Proximity Caves Hacker-Sprinter | -4/Factory Scavenger-Mutant | -4/Extension Scavenger-Mutant | -4/Cetus Scavenger-Mutant | -4/Archives Scavenger-Mutant | -4/Hub_04(d) Scavenger-Mutant | -3/Research Resources | -11 -10 -10 -10 -9 -8 -7 -7 -7 -7 -6 -6 -6 -6 -6 -5 -5 -5 -5 -5 -4 -4 -4 -4 -4 -4 -3 ----------- Run | Scr Mat Min Exi Min Mat Fac Low Low Zio Pro Fac Low Low Dat Pro Fac Upp Upp War Pro Fac Ext Cet Arc Hub Res Matter Collected 2614 | 200 82 12 . . 19 . . . 19 71 173 39 . . 61 . 19 20 68 76 . 698 438 167 35 417 Remotely . | . . . . . . . . . . . . . . . . . . . . . . . . . . . Salvage Created 2867 | . 88 . . . 49 97 . 38 . 71 . . . . 74 . . . . . 20 804 472 302 . 852 Parts 125 | . 3 . . . 12 6 . 3 . 6 . . . . 4 . . . . . 5 22 16 18 . 30 Haulers Intercepted . | . . . . . . . . . . . . . . . . . . . . . . . . . . . Recyclers Shooed 1 | . . . . . . . . . . . . . . . . . . . . . . . . . . 1 Parts Field Recycled . | . . . . . . . . . . . . . . . . . . . . . . . . . . . Retrieved Matter . | . . . . . . . . . . . . . . . . . . . . . . . . . . . Parts Self-Destructed 22 | . . . . . . . 2 3 . 6 . . 8 . 3 . . . . . . . . . . . Prevented 2 | . . . . . . . . . . 2 . . . . . . . . . . . . . . . . Kills | -11 -10 -10 -10 -9 -8 -7 -7 -7 -7 -6 -6 -6 -6 -6 -5 -5 -5 -5 -5 -4 -4 -4 -4 -4 -4 -3 ------- Run | Scr Mat Min Exi Min Mat Fac Low Low Zio Pro Fac Low Low Dat Pro Fac Upp Upp War Pro Fac Ext Cet Arc Hub Res Combat Hostiles Destroyed 66 | . 2 . . . 5 5 . 4 . 4 . . . . 4 . . . . . . 15 8 . . 19 Melee 7 | . . . . . . . . 1 . 1 . . . . . . . . . . . 1 . . . 4 Guns 12 | . 2 . . . 1 . . . . . . . . . . . . . . . . 7 2 . . . Cannons 15 | . . . . . . . . . . . . . . . . . . . . . . . . . . 15 AOE 30 | . . . . . 4 5 . 3 . 3 . . . . 4 . . . . . . 6 5 . . . Classes Destroyed 12 | . 1 . . . 2 2 . 1 . . . . . . 1 . . . . . . 5 . . . . Worker 2 | . . . . . . 1 . . . . . . . . . . . . . . 1 . . . . . Builder 3 | . . . . . . 1 . . . . . . . . . . . . . . . 2 . . . . Recycler 2 | . . . . . . . . . . . . . . . . . . . . . . 1 . . . 1 Operator 11 | . . . . . 1 . . . . . . . . . . . . . . . 1 . . 9 . . Swarmer 30 | . . . . . 5 3 . 3 . 4 . . . . 4 . . . . . . 6 . . . 5 Grunt 19 | . 2 . . . . 2 . . . . . . . . . . . . . . . 4 7 . . 4 Brawler 1 | . . . . . . . . . . . . . . . . . . . . . . 1 . . . . Sentry 4 | . . . . . . . . . . . . . . . . . . . . . . 1 . . . 3 Hunter 2 | . . . . . . . . . . . . . . . . . . . . . . 1 . . . 1 Programmer 8 | . . . . . . . . . . . . . . . . . . . . . . 2 . . . 6 Cetus Guard 1 | . . . . . . . . . . . . . . . . . . . . . . . 1 . . . Samaritan 1 | . . . . . . . . . . . . . . . 1 . . . . . . . . . . . Thief 1 | . . . . . . . . 1 . . . . . . . . . . . . . . . . . . Best Kill Streak 10 | . 2 . . . 4 7 . 3 . 4 . . . . 4 . . . . . 2 6 5 3 . 10 Combat Bots Only 10 | . 2 . . . 4 5 . 3 . 4 . . . . 4 . . . . . . 5 5 . . 10 Max Kills in Single Turn 3 | . 1 . . . 2 3 . 2 . 3 . . . . 3 . . . . . 2 3 2 1 . 1 Gunslinging . | . . . . . . . . . . . . . . . . . . . . . . . . . . . Exploded 3 | . . . . . 2 2 . 2 . 3 . . . . 2 . . . . . . 2 2 . . . Melee 1 | . . . . . . . . 1 . 1 . . . . . . . . . . . 1 . . . 1 Uniques/NPCs Destroyed . | . . . . . . . . . . . . . . . . . . . . . . . . . . . Combat | -11 -10 -10 -10 -9 -8 -7 -7 -7 -7 -6 -6 -6 -6 -6 -5 -5 -5 -5 -5 -4 -4 -4 -4 -4 -4 -3 -------- Run | Scr Mat Min Exi Min Mat Fac Low Low Zio Pro Fac Low Low Dat Pro Fac Upp Upp War Pro Fac Ext Cet Arc Hub Res Damage Taken 8609 | . 37 48 . 21 139 102 36 120 . 35 . . . . 12 159 37 47 16 27 197 1654 993 204 401 4324 Core 1535 | . . . . . . . 12 . . . . . . . 12 12 . . . . 16 90 45 15 18 1315 Absorbed by Shields 524 | . . . . . . . . . . . . . . . . . . . . . 8 299 90 . . 127 Reduced by Siege Mode 54 | . . . . . . . . . . . . . . . . . . . . . . . 28 5 . 21 Redirected to Shielding 212 | . . . . . . 63 7 40 . 21 . . . . . 39 12 30 . . . . . . . . Core Remaining (%) 96 | 100 . . . 100 100 . . . . 98 . . . . 98 . . . . 98 . . . . 84 . Volleys Fired 329 | . 7 . . . 5 8 . 5 . 1 . . . . 3 . . 1 . . 2 86 39 91 21 60 Largest 2 | . 2 . . . 1 1 . 1 . 1 . . . . 1 . . 1 . . 1 1 1 2 1 2 Hottest 240 | . 40 . . . 30 30 . 30 . 30 . . . . 36 . . 36 . . 36 81 240 146 94 159 Shots Fired 334 | . 14 . . . 5 8 . 5 . 1 . . . . 3 . . 1 . . 2 84 39 90 21 61 Gun 245 | . 14 . . . 3 . . . . . . . . . . . . . . . . 73 29 90 21 15 Cannon 46 | . . . . . . . . . . . . . . . . . . . . . . . . . . 46 Launcher 43 | . . . . . 2 8 . 5 . 1 . . . . 3 . . 1 . . 2 11 10 . . . Special . | . . . . . . . . . . . . . . . . . . . . . . . . . . . Kinetic 63 | . 14 . . . 3 . . . . . . . . . . . . . . . . . . . . 46 Thermal 214 | . . . . . . . . . . . . . . . . . . . . . . 73 23 86 18 14 Explosive 43 | . . . . . 2 8 . 5 . 1 . . . . 3 . . 1 . . 2 11 10 . . . Electromagnetic 14 | . . . . . . . . . . . . . . . . . . . . . . . 6 4 3 1 Robot Hit Streak 54 | . 9 . . . 2 . . 5 . 6 . . . . 1 . . . . . . 20 11 32 29 54 Robot Miss Streak 4 | . 1 . . . 1 . . . . . . . . . 2 . . . . . . 4 2 1 . 3 Penetration Max . | . . . . . . . . . . . . . . . . . . . . . . . . . . . Secondary Targets . | . . . . . . . . . . . . . . . . . . . . . . . . . . . Capacitor 185 | . . . . . . . . . . . . . . . . . . . . . . 72 26 69 18 . Shots Hit Robots 299 | . 12 . . . 2 1 . 6 . 2 . . . . 1 . . . . . . 69 32 81 21 72 Core Hits 209 | . 8 . . . 9 10 . 6 . 5 . . . . 5 . . . . . 4 44 36 32 8 42 Critical Kills 1 | . . . . . 1 . . . . . . . . . . . . . . . . . . . . . Critical Parts Destroyed . | . . . . . . . . . . . . . . . . . . . . . . . . . . . Critical Strikes 25 | . . . . . 1 . . . . . . . . . . . . . . . . 7 1 7 . 9 Burn 15 | . . . . . . . . . . . . . . . . . . . . . . 7 1 7 . . Destroy 1 | . . . . . 1 . . . . . . . . . . . . . . . . . . . . . Blast 6 | . . . . . . . . . . . . . . . . . . . . . . . . . . 6 Sunder 3 | . . . . . . . . . . . . . . . . . . . . . . . . . . 3 Melee Attacks 60 | . . . . . . 2 . 3 . 3 2 . . . . 1 . . . . 26 8 . . . 15 Impact . | . . . . . . . . . . . . . . . . . . . . . . . . . . . Slashing 45 | . . . . . . 2 . 3 . 3 2 . . . . 1 . . . . 26 8 . . . . Piercing . | . . . . . . . . . . . . . . . . . . . . . . . . . . . Entropic 15 | . . . . . . . . . . . . . . . . . . . . . . . . . . 15 Sneak Attacks 2 | . . . . . . 1 . . . . . . . . . . . . . . . . . . . 1 Combat Hostiles . | . . . . . . . . . . . . . . . . . . . . . . . . . . . Follow-up Attacks . | . . . . . . . . . . . . . . . . . . . . . . . . . . . Damage Inflicted 14122 | . 132 . . . 355 654 . 379 . 190 . . . . 305 . . . . . 183 2785 2094 1892 650 4503 Guns 5291 | . 127 . . . 15 . . . . . . . . . . . . . . . . 1549 579 1892 632 497 Cannons 2930 | . . . . . . . . . . . . . . . . . . . . . . . . . . 2930 Explosions 4249 | . . . . . 340 589 . 263 . 154 . . . . 305 . . . . . 183 900 1515 . . . Melee 1595 | . . . . . . 65 . 116 . 36 . . . . . . . . . . . 336 . . . 1042 Ramming 57 | . 5 . . . . . . . . . . . . . . . . . . . . . . . 18 34 Kinetic 3072 | . 127 . . . 15 . . . . . . . . . . . . . . . . . . . . 2930 Thermal 4924 | . . . . . . . . . . . . . . . . . . . . . . 1549 524 1805 554 492 Explosive 4173 | . . . . . 264 589 . 263 . 154 . . . . 305 . . . . . 183 900 1515 . . . Electromagnetic 301 | . . . . . 76 . . . . . . . . . . . . . . . . . 55 87 78 5 Impact . | . . . . . . . . . . . . . . . . . . . . . . . . . . . Slashing 553 | . . . . . . 65 . 116 . 36 . . . . . . . . . . . 336 . . . . Piercing . | . . . . . . . . . . . . . . . . . . . . . . . . . . . Entropic 1042 | . . . . . . . . . . . . . . . . . . . . . . . . . . 1042 Highest Corruption 28 | . . . . . . . 1 1 1 . . . . . . . . . . . . 28 21 17 . 14 Average Corruption 12 | . . . . . . . 1 1 1 . . . . . . . . . . . . 14 16 12 . 7 Corruption Purged 32 | . . . . . . . . . . . . . . . . . . . . . . 7 8 17 . . Corruption Blocked . | . . . . . . . . . . . . . . . . . . . . . . . . . . . Effects 94 | . . . . . . . . . . . . . . . . . . . . . . 30 28 18 . 18 Message Errors 17 | . . . . . . . . . . . . . . . . . . . . . . 3 7 2 . 5 Matter Fused 25 | . . . . . . . . . . . . . . . . . . . . . . 8 6 6 . 5 Heat Flow Errors 15 | . . . . . . . . . . . . . . . . . . . . . . 8 3 3 . 1 Energy Discharges 9 | . . . . . . . . . . . . . . . . . . . . . . 3 3 1 . 2 Parts Rejected 1 | . . . . . . . . . . . . . . . . . . . . . . . 1 . . . Data Loss (minor) 10 | . . . . . . . . . . . . . . . . . . . . . . 1 1 3 . 5 Data Loss (major) 5 | . . . . . . . . . . . . . . . . . . . . . . 2 2 1 . . Misfires 2 | . . . . . . . . . . . . . . . . . . . . . . 1 1 . . . Alerts 1 | . . . . . . . . . . . . . . . . . . . . . . 1 . . . . Misdirections 3 | . . . . . . . . . . . . . . . . . . . . . . . 3 . . . Weapon Failures 6 | . . . . . . . . . . . . . . . . . . . . . . 3 1 2 . . Overload Shots 2 | . . . . . . . . . . . . . . . . . . . . . . . 2 . . . Overflow Damage 327 | . . . . . . 75 . 31 . . . . . . 30 . . . . . 22 30 . . . 139 Projectiles 100 | . . . . . . . . . . . . . . . . . . . . . . . . . . 100 Explosions 183 | . . . . . . 75 . 31 . . . . . . 30 . . . . . 22 25 . . . . Melee 44 | . . . . . . . . . . . . . . . . . . . . . . 5 . . . 39 Knockbacks 33 | . . . . . . . . . . . . . . . . . . . . . . . . . . 33 Impact . | . . . . . . . . . . . . . . . . . . . . . . . . . . . Kinetic 30 | . . . . . . . . . . . . . . . . . . . . . . . . . . 30 Secondary 3 | . . . . . . . . . . . . . . . . . . . . . . . . . . 3 Self-Inflicted Damage 150 | . 2 . . . . 12 . 52 . . . . . . . . . . . . 32 39 . . . 13 Shots 6 | . . . . . . 1 . 2 . . . . . . . . . . . . 1 2 . . . . Rammed 12 | . 2 . . . . . . . . . . . . . . . . . . . . . . . . 10 Targets Rammed 15 | . 2 . . . . . . . . . . . . . . . . . . . . . . . 2 11 Kicked 3 | . . . . . . . . . . . . . . . . . . . . . . . . . 2 1 Crushed . | . . . . . . . . . . . . . . . . . . . . . . . . . . . Highest Temperature 535 | . 9 . . . 5 2 . . . . 9 . . . 8 . . 7 . . 146 370 535 528 370 162 Average Temperature 86 | . 7 . . . 3 2 . . . . 5 . . . 6 . . 7 . . 50 99 104 124 156 59 Received Heat Transfer 1506 | . 27 33 . . 63 . 9 . . 9 . . . . . 27 9 27 9 . . 288 318 45 139 503 Effects 17 | . . . . . . . . . . . . . . . . . . . . . . 5 5 7 . . Shutdowns 3 | . . . . . . . . . . . . . . . . . . . . . . . 2 1 . . Energy Bleed 2 | . . . . . . . . . . . . . . . . . . . . . . 1 . 1 . . Interference 6 | . . . . . . . . . . . . . . . . . . . . . . 3 3 . . . Damage (minor) 2 | . . . . . . . . . . . . . . . . . . . . . . 1 . 1 . . Damage (major) 4 | . . . . . . . . . . . . . . . . . . . . . . . . 4 . . Siege Activations 4 | . . . . . . . . . . . . . . . . . . . . . . . 1 1 1 1 Total Turns 56 | . . . . . . . . . . . . . . . . . . . . . . . 20 18 8 10 Longest Duration 20 | . . . . . . . . . . . . . . . . . . . . . . . 20 18 8 10 Robots Corrupted . | . . . . . . . . . . . . . . . . . . . . . . . . . . . Combat Hostiles . | . . . . . . . . . . . . . . . . . . . . . . . . . . . Parts Fried . | . . . . . . . . . . . . . . . . . . . . . . . . . . . Impact Corruptions . | . . . . . . . . . . . . . . . . . . . . . . . . . . . Robots Melted 2 | . . . . . . . . . . . . . . . . . . . . . . 1 1 . . . Combat Hostiles 2 | . . . . . . . . . . . . . . . . . . . . . . 1 1 . . . Parts Melted 19 | . . . . . . . . . . . . . . . . . . . . . . 11 . 8 . . Heat Transferred 8129 | . . . . . . . . . . . . . . . . . . . . . . 2719 785 3441 666 518 Parts Sabotaged . | . . . . . . . . . . . . . . . . . . . . . . . . . . . Parts Stolen . | . . . . . . . . . . . . . . . . . . . . . . . . . . . Parts Stripped . | . . . . . . . . . . . . . . . . . . . . . . . . . . . Power Chain Reactions . | . . . . . . . . . . . . . . . . . . . . . . . . . . . Missiles Intercepted . | . . . . . . . . . . . . . . . . . . . . . . . . . . . Alert | -11 -10 -10 -10 -9 -8 -7 -7 -7 -7 -6 -6 -6 -6 -6 -5 -5 -5 -5 -5 -4 -4 -4 -4 -4 -4 -3 ------- Run | Scr Mat Min Exi Min Mat Fac Low Low Zio Pro Fac Low Low Dat Pro Fac Upp Upp War Pro Fac Ext Cet Arc Hub Res Peak Influence 1090 | . 109 110 . . 339 484 . . . . 171 . . . . 111 . . . . 235 1090 1003 467 272 538 Initial 438 | . . 35 . . . 131 . . . . 82 . . . . 54 . . . . . 98 438 287 79 110 Average 300 | . 42 72 . . 116 228 . . . . 130 . . . . 80 . . . . 54 704 752 366 160 166 Maximum Alert Level 3 | . . . . . 1 2 . . . . . . . . . . . . . . 1 3 3 2 1 2 Low Security (%) 55 | . 100 100 . 100 65 59 . . . . 100 . . . . 100 . . . . 99 10 . . 78 73 Level 1 14 | . . . . . 34 25 . . . . . . . . . . . . . . . 3 . 46 21 17 Level 2 14 | . . . . . . 15 . . . . . . . . . . . . . . . 23 30 53 . 9 Level 3 15 | . . . . . . . . . . . . . . . . . . . . . . 62 69 . . . Level 4 . | . . . . . . . . . . . . . . . . . . . . . . . . . . . Level 5 . | . . . . . . . . . . . . . . . . . . . . . . . . . . . High Security . | . . . . . . . . . . . . . . . . . . . . . . . . . . . Max Security . | . . . . . . . . . . . . . . . . . . . . . . . . . . . Squads Dispatched 30 | . . . . . 1 7 . . . . 1 . . . . . . . . . 2 4 1 . 3 11 Investigation 10 | . . . . . . 4 . . . . . . . . . . . . . . . 3 1 . 1 1 Extermination 3 | . . . . . . . . . . . . . . . . . . . . . 1 . . . 1 1 Reinforcement 12 | . . . . . 1 2 . . . . 1 . . . . . . . . . 1 . . . 1 6 Assault 1 | . . . . . . . . . . . . . . . . . . . . . . 1 . . . . Garrison 4 | . . . . . . 1 . . . . . . . . . . . . . . . . . . . 3 Intercept . | . . . . . . . . . . . . . . . . . . . . . . . . . . . Searches Triggered 1 | . . . . . . . . . . . . . . . . . . . . . . 1 . . . . Data Miner Redirects 3 | . . . . . . . . . . . . . . . . . . . . . . 1 1 . 1 . Construction Impeded 4 | . . . . . . 1 . . . . . . . . . . . . . . 1 . . . . 2 Haulers Reinforced 1 | . . . . . . 1 . . . . . . . . . . . . . . . . . . . . Active Scanning Responses . | . . . . . . . . . . . . . . . . . . . . . . . . . . . Cargo Convoy Interrupts . | . . . . . . . . . . . . . . . . . . . . . . . . . . . Stealth | -11 -10 -10 -10 -9 -8 -7 -7 -7 -7 -6 -6 -6 -6 -6 -5 -5 -5 -5 -5 -4 -4 -4 -4 -4 -4 -3 --------- Run | Scr Mat Min Exi Min Mat Fac Low Low Zio Pro Fac Low Low Dat Pro Fac Upp Upp War Pro Fac Ext Cet Arc Hub Res Distress Signals 16 | . . . . . 4 1 . . . . . . . . . . . . . . 4 1 1 . . 5 Communications Jammed . | . . . . . . . . . . . . . . . . . . . . . . . . . . . Distress Signals . | . . . . . . . . . . . . . . . . . . . . . . . . . . . Times Spotted 332 | . 6 6 . 13 22 21 2 8 . 8 11 . 1 . 4 7 1 4 5 2 25 57 25 20 18 66 Peak Tracking Total 17 | . 3 2 . 16 14 9 2 4 . 4 5 . 1 . 4 8 1 4 5 2 13 13 8 2 8 17 Tactical Retreats 39 | . . 2 . 1 3 3 . . . 2 . . 1 . . . . 3 . . 4 11 . . 2 7 Traps | -11 -10 -10 -10 -9 -8 -7 -7 -7 -7 -6 -6 -6 -6 -6 -5 -5 -5 -5 -5 -4 -4 -4 -4 -4 -4 -3 ------- Run | Scr Mat Min Exi Min Mat Fac Low Low Zio Pro Fac Low Low Dat Pro Fac Upp Upp War Pro Fac Ext Cet Arc Hub Res Traps Triggered 4 | . . . . . . . . . . . . . . . . . . . . . 2 1 . . . 1 Indirectly . | . . . . . . . . . . . . . . . . . . . . . . . . . . . Trap Hack Attempts . | . . . . . . . . . . . . . . . . . . . . . . . . . . . Triggered . | . . . . . . . . . . . . . . . . . . . . . . . . . . . Disarmed . | . . . . . . . . . . . . . . . . . . . . . . . . . . . Reprogrammed . | . . . . . . . . . . . . . . . . . . . . . . . . . . . Reused . | . . . . . . . . . . . . . . . . . . . . . . . . . . . Traps Extracted . | . . . . . . . . . . . . . . . . . . . . . . . . . . . Installed . | . . . . . . . . . . . . . . . . . . . . . . . . . . . Triggered 14 | . . . . . . . 1 . . 2 . 2 . . . . . . 9 . . . . . . . Machines | -11 -10 -10 -10 -9 -8 -7 -7 -7 -7 -6 -6 -6 -6 -6 -5 -5 -5 -5 -5 -4 -4 -4 -4 -4 -4 -3 ---------- Run | Scr Mat Min Exi Min Mat Fac Low Low Zio Pro Fac Low Low Dat Pro Fac Upp Upp War Pro Fac Ext Cet Arc Hub Res Machines Disabled 17 | . 1 . . . 1 3 . . . . . . . . . 1 . . . . 2 2 2 3 . 2 Max in Single Turn 3 | . 1 . . . 1 3 . . . . . . . . . . . . . . 1 1 2 1 . 1 Machines Sabotaged . | . . . . . . . . . . . . . . . . . . . . . . . . . . . Garrisons Compromised . | . . . . . . . . . . . . . . . . . . . . . . . . . . . Overloaded Fab Kills . | . . . . . . . . . . . . . . . . . . . . . . . . . . . Hacking | -11 -10 -10 -10 -9 -8 -7 -7 -7 -7 -6 -6 -6 -6 -6 -5 -5 -5 -5 -5 -4 -4 -4 -4 -4 -4 -3 --------- Run | Scr Mat Min Exi Min Mat Fac Low Low Zio Pro Fac Low Low Dat Pro Fac Upp Upp War Pro Fac Ext Cet Arc Hub Res Machines Accessed 52 | . 4 1 1 . 4 6 . . . . 2 . 1 4 . 2 2 1 3 . 3 9 1 . 4 4 Terminals 33 | . 4 . . . 4 3 . . . . 2 . . . . 2 1 . . . 1 9 1 . 4 2 Fabricators 4 | . . . . . . 2 . . . . . . . . . . . . . . 1 . . . . 1 Repair Stations . | . . . . . . . . . . . . . . . . . . . . . . . . . . . Recycling Units 1 | . . . . . . . . . . . . . . . . . . . . . 1 . . . . . Scanalyzers 2 | . . . . . . 1 . . . . . . . . . . . . . . . . . . . 1 Garrison Access . | . . . . . . . . . . . . . . . . . . . . . . . . . . . Total Hacks 140 | . 9 1 1 . 14 14 . . . . 4 . 1 29 . 3 2 1 4 . 6 22 4 . 8 17 Successful 95 | . 4 1 1 . 10 9 . . . . 1 . 1 29 . 2 2 1 4 . 3 12 1 . 3 11 Failed 45 | . 5 . . . 4 5 . . . . 3 . . . . 1 . . . . 3 10 3 . 5 6 Catastrophic 5 | . . . . . . 1 . . . . . . . . . . . . . . . 3 1 . . . Database Lockouts . | . . . . . . . . . . . . . . . . . . . . . . . . . . . Manual 65 | . 5 . 1 . 12 6 . . . . 4 . . . . 3 . . 1 . 4 19 1 . . 9 Terminals 87 | . 9 . . . 14 9 . . . . 4 . . . . 3 1 . . . 2 22 4 . 8 11 Fabricators 6 | . . . . . . 2 . . . . . . . . . . . . . . 1 . . . . 3 Repair Stations . | . . . . . . . . . . . . . . . . . . . . . . . . . . . Recycling Units 3 | . . . . . . . . . . . . . . . . . . . . . 3 . . . . . Scanalyzers 6 | . . . . . . 3 . . . . . . . . . . . . . . . . . . . 3 Garrison Access . | . . . . . . . . . . . . . . . . . . . . . . . . . . . Terminal Hacks 60 | . 4 1 1 . 4 2 . . . . . . 1 29 . . 2 1 4 . 1 2 1 . 3 4 Record 15 | . . . . . . . . . . . . . . 11 . . 1 . 2 . 1 . . . . . Part Schematic 11 | . . . . . . 1 . . . . . . . 9 . . . . . . . . . . . 1 Robot Schematic 6 | . . . . . . . . . . . . . . 6 . . . . . . . . . . . . Robot Analysis 1 | . . . . . . . . . . . . . . . . . . . . . . . . . 1 . Prototype ID Bank 5 | . 1 . . . 1 . . . . . . . . 3 . . . . . . . . . . . . Open Door 7 | . . 1 . . . . . . . . . . 1 . . . 1 1 2 . . . 1 . . . Level Access Points 1 | . . . . . 1 . . . . . . . . . . . . . . . . . . . . . Branch Access Points 3 | . 1 . . . . 1 . . . . . . . . . . . . . . . . . . . 1 Emergency Access Points 1 | . . . . . 1 . . . . . . . . . . . . . . . . . . . . . Terminal Index 2 | . . . . . 1 . . . . . . . . . . . . . . . . . . . . 1 Alert Level 1 | . . . . . . . . . . . . . . . . . . . . . . . . . 1 . Locate Traps 1 | . . . . . . . . . . . . . . . . . . . . . . 1 . . . . Recall Investigation 1 | . . . . . . . . . . . . . . . . . . . . . . . . . . 1 Hauler Manifests 1 | . 1 . . . . . . . . . . . . . . . . . . . . . . . . . Registered Components 1 | . . . . . . . . . . . . . . . . . . . . . . . . . 1 . Zone Layout 2 | . 1 . . . . . . . . . . . . . . . . . . . . 1 . . . . EX-Prototype ID Bank 1 | . . . 1 . . . . . . . . . . . . . . . . . . . . . . . Fabricator Hacks 3 | . . . . . . 1 . . . . . . . . . . . . . . . . . . . 2 Network Status 1 | . . . . . . 1 . . . . . . . . . . . . . . . . . . . . Load Schematic 1 | . . . . . . . . . . . . . . . . . . . . . . . . . . 1 Build 1 | . . . . . . . . . . . . . . . . . . . . . . . . . . 1 Repair Station Hacks . | . . . . . . . . . . . . . . . . . . . . . . . . . . . Recycling Unit Hacks . | . . . . . . . . . . . . . . . . . . . . . . . . . . . Scanalyzer 5 | . . . . . . 3 . . . . . . . . . . . . . . . . . . . 2 Insert Component 2 | . . . . . . 1 . . . . . . . . . . . . . . . . . . . 1 Analyze 3 | . . . . . . 2 . . . . . . . . . . . . . . . . . . . 1 Garrison Access Hacks . | . . . . . . . . . . . . . . . . . . . . . . . . . . . Unauthorized Hacks 27 | . . . . . 6 3 . . . . 1 . . . . 2 . . . . 2 10 . . . 3 Terminals 24 | . . . . . 6 2 . . . . 1 . . . . 2 . . . . . 10 . . . 3 Track 4 | . . . . . 1 . . . . . . . . . . . . . . . . 2 . . . 1 Assimilate 1 | . . . . . . 1 . . . . . . . . . . . . . . . . . . . . Botnet 11 | . . . . . 1 1 . . . . 1 . . . . 2 . . . . . 4 . . . 2 Detonate 2 | . . . . . 1 . . . . . . . . . . . . . . . . 1 . . . . Disrupt 5 | . . . . . 2 . . . . . . . . . . . . . . . . 3 . . . . Operators 1 | . . . . . 1 . . . . . . . . . . . . . . . . . . . . . Fabricators 2 | . . . . . . 1 . . . . . . . . . . . . . . 1 . . . . . Liberate 1 | . . . . . . . . . . . . . . . . . . . . . 1 . . . . . Recompile 1 | . . . . . . 1 . . . . . . . . . . . . . . . . . . . . Repair Stations . | . . . . . . . . . . . . . . . . . . . . . . . . . . . Recycling Units 1 | . . . . . . . . . . . . . . . . . . . . . 1 . . . . . Mask 1 | . . . . . . . . . . . . . . . . . . . . . 1 . . . . . Scanalyzers . | . . . . . . . . . . . . . . . . . . . . . . . . . . . Garrison Access . | . . . . . . . . . . . . . . . . . . . . . . . . . . . Data Cores Recovered 1 | . . . . . . . . . . . . . . . . . . . . . . 1 . . . . Used 1 | . . . . . . . . . . . . . . . . . . . . . . 1 . . . . Hacking Detections 34 | . 3 . . . 2 4 . . . . 2 . . . . 2 1 . . . 3 8 1 . 4 4 Full Trace Events 10 | . 1 . . . . 3 . . . . . . . . . . . . . . . 3 1 . 1 1 Feedback Events 1 | . . . . . . . . . . . . . . . . . . . . . . 1 . . . . Corruption 1 | . . . . . . . . . . . . . . . . . . . . . . 1 . . . . Feedback Blocked . | . . . . . . . . . . . . . . . . . . . . . . . . . . . Robot Schematics Acquired 9 | . . . . . . . . . 3 . . . . 6 . . . . . . . . . . . . Robots Built . | . . . . . . . . . . . . . . . . . . . . . . . . . . . Authchips . | . . . . . . . . . . . . . . . . . . . . . . . . . . . Time . | . . . . . . . . . . . . . . . . . . . . . . . . . . . Total Robot Build Rating . | . . . . . . . . . . . . . . . . . . . . . . . . . . . Part Schematics Acquired 28 | . . . . . . 2 . . 15 . . . . 9 . . . . . . . . . . . 2 Parts Built 1 | . . . . . . . . . . . . . . . . . . . . . . . . . . 1 Authchips . | . . . . . . . . . . . . . . . . . . . . . . . . . . . Time 169 | . . . . . . . . . . . . . . . . . . . . . . . . . . 169 Total Part Build Rating 6 | . . . . . . . . . . . . . . . . . . . . . . . . . . 6 Parts Repaired . | . . . . . . . . . . . . . . . . . . . . . . . . . . . Time . | . . . . . . . . . . . . . . . . . . . . . . . . . . . Parts Recycled . | . . . . . . . . . . . . . . . . . . . . . . . . . . . Recycled Matter . | . . . . . . . . . . . . . . . . . . . . . . . . . . . Retrieved Matter . | . . . . . . . . . . . . . . . . . . . . . . . . . . . Retrieved Components . | . . . . . . . . . . . . . . . . . . . . . . . . . . . Parts Scanalyzed 2 | . . . . . . 1 . . . . . . . . . . . . . . . . . . . 1 Part Schematics Acquired 2 | . . . . . . 1 . . . . . . . . . . . . . . . . . . . 1 Parts Damaged . | . . . . . . . . . . . . . . . . . . . . . . . . . . . Bothacking | -11 -10 -10 -10 -9 -8 -7 -7 -7 -7 -6 -6 -6 -6 -6 -5 -5 -5 -5 -5 -4 -4 -4 -4 -4 -4 -3 ------------ Run | Scr Mat Min Exi Min Mat Fac Low Low Zio Pro Fac Low Low Dat Pro Fac Upp Upp War Pro Fac Ext Cet Arc Hub Res Used RIF Installer . | . . . . . . . . . . . . . . . . . . . . . . . . . . . Robots Hacked . | . . . . . . . . . . . . . . . . . . . . . . . . . . . Non-combat . | . . . . . . . . . . . . . . . . . . . . . . . . . . . Combat . | . . . . . . . . . . . . . . . . . . . . . . . . . . . Robot Hacks Applied . | . . . . . . . . . . . . . . . . . . . . . . . . . . . Relay Couplers Released . | . . . . . . . . . . . . . . . . . . . . . . . . . . . Fabnet Peak Effective % . | . . . . . . . . . . . . . . . . . . . . . . . . . . . Robots Rewired . | . . . . . . . . . . . . . . . . . . . . . . . . . . . Allies Hacked 1 | . . . . . . . . . . . . . . . . . . . . . 1 . . . . . Hacks Repelled . | . . . . . . . . . . . . . . . . . . . . . . . . . . . Allies | -11 -10 -10 -10 -9 -8 -7 -7 -7 -7 -6 -6 -6 -6 -6 -5 -5 -5 -5 -5 -4 -4 -4 -4 -4 -4 -3 -------- Run | Scr Mat Min Exi Min Mat Fac Low Low Zio Pro Fac Low Low Dat Pro Fac Upp Upp War Pro Fac Ext Cet Arc Hub Res Total Allies 15 | . . . . . . . . . . . . . . . 1 . . . . . 3 6 5 . . . Largest Group 6 | . . . . . . . . . . . . . . . 1 1 . . . . 3 5 6 2 2 . Highest-Rated Group 524 | . . . . . . . . . . . . . . . 96 96 . . . . 141 331 524 192 192 . Highest-Rated Ally 159 | . . . . . . . . . . . . . . . 96 96 . . . . 47 159 159 96 96 . Total Orders . | . . . . . . . . . . . . . . . . . . . . . . . . . . . Ally Attacks 221 | . . . . . . . . . . . . . . . . 3 . . . . 5 73 88 21 31 . Total Damage 6810 | . . . . . . . . . . . . . . . . 433 . . . . 144 1575 2617 940 1101 . Kills 44 | . . . . . . . . . . . . . . . . 1 . . . . . 15 16 4 8 . Allies Corrupted 3 | . . . . . . . . . . . . . . . . . . . . . . . 1 . 2 . Allies Melted 1 | . . . . . . . . . . . . . . . . 1 . . . . . . . . . . Intel | -11 -10 -10 -10 -9 -8 -7 -7 -7 -7 -6 -6 -6 -6 -6 -5 -5 -5 -5 -5 -4 -4 -4 -4 -4 -4 -3 ------- Run | Scr Mat Min Exi Min Mat Fac Low Low Zio Pro Fac Low Low Dat Pro Fac Upp Upp War Pro Fac Ext Cet Arc Hub Res Robot Analysis Total 1 | . . . . . . . . . . . . . . . . . . . . . . . . . 1 . Derelict Logs Recovered 12 | . . . . 1 . . 2 1 1 . . 2 1 . 2 . 2 . . . . . . . . . Drone Launches . | . . . . . . . . . . . . . . . . . . . . . . . . . . . Drone Recoveries . | . . . . . . . . . . . . . . . . . . . . . . . . . . . Exploration | -11 -10 -10 -10 -9 -8 -7 -7 -7 -7 -6 -6 -6 -6 -6 -5 -5 -5 -5 -5 -4 -4 -4 -4 -4 -4 -3 ------------- Run | Scr Mat Min Exi Min Mat Fac Low Low Zio Pro Fac Low Low Dat Pro Fac Upp Upp War Pro Fac Ext Cet Arc Hub Res Turns Passed 7790 | . 373 108 191 40 162 452 81 103 153 135 330 126 189 25 198 78 166 124 300 68 581 870 567 627 690 1053 Spaces Moved 11095 | 1 329 287 268 117 311 1065 238 247 447 364 656 400 532 79 368 110 374 252 644 215 1053 958 282 262 524 712 Core 116 | . . . . . . . . . . . . . . . . . . . . . . . . . . 116 Treads 240 | . . . . . . . . . . . . . . . . . . . . . . 163 38 39 . . Legs 1742 | 1 47 . . . . . . . . . . . . . . . . . . . . 111 244 223 524 592 Wheels 264 | . 264 . . . . . . . . . . . . . . . . . . . . . . . . . Hover . | . . . . . . . . . . . . . . . . . . . . . . . . . . . Flight 8733 | . 18 287 268 117 311 1065 238 247 447 364 656 400 532 79 368 110 374 252 644 215 1053 684 . . . 4 Fastest Speed 27 | 120 37 37 34 34 39 34 34 34 34 34 31 31 31 31 31 31 31 31 27 31 31 28 120 120 120 40 Average Speed 52 | 120 100 37 67 34 39 34 34 34 34 34 31 31 31 31 31 31 31 31 31 31 31 69 125 125 120 109 Slowest Speed 450 | 120 125 37 117 34 39 34 34 34 34 34 31 31 31 31 31 31 31 31 42 31 32 400 240 160 120 450 Overloaded Moves 165 | . . . . . . . . . . . . . . . . . . . . . . 165 . . . . Propulsion Burnouts . | . . . . . . . . . . . . . . . . . . . . . . . . . . . Robots Hopped 75 | . . 3 . . 5 17 . . . . 11 2 . . . 1 . . . . 26 8 . . . 2 Cave-ins Triggered . | . . . . . . . . . . . . . . . . . . . . . . . . . . . Exploration Rate (%) 51 | 2 60 61 72 46 33 29 44 45 68 50 23 69 63 70 65 4 47 44 93 45 22 88 86 89 50 24 Regions Visited 26 Branch Regions 19 Pre-discovered Areas 4 | . . . . . . . . . 1 . . . . 1 . . 2 . . . . . . . . . Known Exits Taken 22 | . 1 1 1 1 1 1 1 1 1 1 1 1 1 1 1 1 1 1 1 1 1 1 . . . . Unknown Exits Taken 4 | 1 . . . . . . . . . . . . . . . . . . . . . . 1 1 1 . Scrap Searched 13 | . . . . . . . . . 4 1 . 2 1 . 1 . 1 1 . 2 . . . . . . Spaces Dug 83 | . . . . . . 26 . . . . 2 . . . . 1 . 19 . . 32 . . . . 3 Terrain Destroyed 412 | . . . . . 19 55 . 36 . 5 2 . . . 25 1 . 19 . . 43 70 129 . . 8 Melee 32 | . . . . . . 1 . . . . 2 . . . . 1 . . . . 25 . . . . 3 Projectile 5 | . . . . . . . . . . . . . . . . . . . . . . . . . . 5 AOE 375 | . . . . . 19 54 . 36 . 5 . . . . 25 . . 19 . . 18 70 129 . . . Terrain Rammed . | . . . . . . . . . . . . . . . . . . . . . . . . . . . Walls Destroyed . | . . . . . . . . . . . . . . . . . . . . . . . . . . . Machines Disabled . | . . . . . . . . . . . . . . . . . . . . . . . . . . . Actions | -11 -10 -10 -10 -9 -8 -7 -7 -7 -7 -6 -6 -6 -6 -6 -5 -5 -5 -5 -5 -4 -4 -4 -4 -4 -4 -3 --------- Run | Scr Mat Min Exi Min Mat Fac Low Low Zio Pro Fac Low Low Dat Pro Fac Upp Upp War Pro Fac Ext Cet Arc Hub Res Total 12750 | . 359 285 279 116 341 1128 237 255 447 368 771 398 555 78 448 149 423 295 747 215 1228 1126 476 538 583 905 Wait 937 | . . . . . 10 42 . . . . 95 . 22 . 78 32 44 41 66 1 117 21 120 155 25 68 Move 10930 | . 328 280 267 116 300 1032 237 246 446 363 636 395 531 78 367 107 373 251 643 214 1004 941 281 261 524 709 Hop 64 | . . 3 . . 5 14 . . . . 8 2 . . . 1 . . . . 22 8 . . . 1 Pick Up 82 | . 5 1 2 . 14 14 . . . . 13 . 1 . . 2 2 . 4 . 7 4 1 7 2 3 Fast Attach 70 | . 4 . 1 . 2 3 . . . . 1 . . . . 1 . . 12 . 1 16 8 8 3 10 Attach 37 | . 1 1 . . 2 1 . 1 . 1 1 . . . . 1 . 1 1 . 5 4 1 2 . 14 Detach 16 | . . . . . 1 . . . 1 . . . . . . . . . 3 . 2 4 . . . 5 Swap 57 | . 3 . 3 . 1 1 . . . . 3 1 . . . 2 2 1 1 . 3 11 15 3 1 6 Drop 110 | . 9 . 6 . 1 10 . . . . 12 . 1 . . 2 2 . 17 . 8 11 11 11 6 3 Fire 329 | . 7 . . . 5 8 . 5 . 1 . . . . 3 . . 1 . . 2 86 39 91 21 60 Melee 60 | . . . . . . 2 . 3 . 3 2 . . . . 1 . . . . 26 8 . . . 15 Ram 12 | . 2 . . . . . . . . . . . . . . . . . . . . . . . . 10 Kick 2 | . . . . . . . . . . . . . . . . . . . . . . . . . 1 1 Crush . | . . . . . . . . . . . . . . . . . . . . . . . . . . . Escape Stasis 32 | . . . . . . 1 . . . . . . . . . . . . . . 31 . . . . . Rewire 12 | . . . . . . . . . . . . . . . . . . . . . . 12 . . . . Trap . | . . . . . . . . . . . . . . . . . . . . . . . . . . . Miscellaneous . | . . . . . . . . . . . . . . . . . . . . . . . . . . . Route ------- -11/Scrapyard -10/Materials (discovered 3 exits: [*Mat x2] / *Min) -10/Mines -10/Exiles -9/Mines -8/Materials (discovered 3 exits: *Fac x3) -7/Factory (discovered 4 exits: Sto x2 / *Low x2) -7/Lower Caves -7/Lower Caves (discovered 2 exits: *Fac / *Zio) -7/Zion -6/Proximity Caves -6/Factory (discovered 4 exits: *Fac x3 / *Low) -6/Lower Caves -6/Lower Caves -6/Data Miner -5/Proximity Caves -5/Factory (discovered 3 exits: Fac x2 / *Upp) -5/Upper Caves -5/Upper Caves (discovered 2 exits: *Fac / *War) -5/Warlord -4/Proximity Caves -4/Factory -4/Extension (discovered 2 exits: *Res / *Cet) -4/Cetus (discovered 2 exits: *Res / [*Arc]) -4/Archives (discovered 3 exits: *Res / *Hub x2) -4/Hub_04(d) (discovered 3 exits: *Res x3) -3/Research (discovered 2 exits: Qua x2) History --------- Turn | Location | Event 1 | -11/Scrapyard | Discovered new exit (range 0) 1 | -11/Scrapyard | Entered Materials 80 | -10/Materials | Identified exit to Mines 110 | -10/Materials | Discovered new exit (range 16) 279 | -10/Materials | Discovered new exit (range 7) 306 | -10/Materials | Build established: Mutant 374 | -10/Materials | Entered Mines 469 | -10/Mines | Met a Derelict who couldn't figure out how to use a Trap Extractor 474 | -10/Mines | Met a Derelict bent on vengeance 481 | -10/Mines | Deemed a non-threat by the Exiles lab entrance 481 | -10/Mines | Discovered new exit (range 5) 482 | -10/Mines | Identified exit to Exiles 482 | -10/Mines | Entered Exiles 491 | -10/Exiles | Met 8R-AWN 498 | -10/Exiles | Met EX-HEX 509 | -10/Exiles | Met EX-BIN 513 | -10/Exiles | Aligned with FarCom system 513 | -10/Exiles | Given EX-Vault access code 522 | -10/Exiles | Opened EX-Vault 527 | -10/Exiles | Found Flying Fortress v7 551 | -10/Exiles | Warned to stay clear of 0b10 Research branches 583 | -10/Exiles | Met EX-DEC 622 | -10/Exiles | Visited The Gauntlet 670 | -10/Exiles | Discovered new exit (range 12) 673 | -10/Exiles | Identified exit to Mines 673 | -10/Exiles | Left Exiles lab with Flying Fortress v7 673 | -10/Exiles | Entered Mines 684 | -9/Mines | Assembled infested the area 690 | -9/Mines | Learned 2 Materials zone layouts 710 | -9/Mines | Discovered new exit (range 9) 713 | -9/Mines | Identified exit to Materials 713 | -9/Mines | Entered Materials 713 | -8/Materials | Evolved 4 slots: Propulsion x3, Utility x1 761 | -8/Materials | Identified exit to Factory 875 | -8/Materials | Entered Factory 875 | -7/Factory | Evolved 2 slots: Propulsion x1, Utility x1 1153 | -7/Factory | Garrison activated, responded to threat 1184 | -7/Factory | Identified exit to Storage 1184 | -7/Factory | Identified exit to Lower Caves 1327 | -7/Factory | Entered Lower Caves 1331 | -7/Lower Caves | Learned Factory interactive machine intel 1350 | -7/Lower Caves | Learned location of 1 exit from Factory 1403 | -7/Lower Caves | Discovered new exit (range 16) 1408 | -7/Lower Caves | Identified exit to Lower Caves 1408 | -7/Lower Caves | Entered another Lower Caves area 1409 | -7/Lower Caves | Discovered new exit (range 12) 1433 | -7/Lower Caves | Identified exit to Factory 1488 | -7/Lower Caves | Encountered a Warlord checkpoint 1491 | -7/Lower Caves | Learned location of 1 exit from Factory 1508 | -7/Lower Caves | Discovered new exit (range 10) 1511 | -7/Lower Caves | Identified exit to Zion 1511 | -7/Lower Caves | Entered Zion 1524 | -7/Zion | System corruption cleaned by Quarantine Array 1571 | -7/Zion | Given the Hacking Drone Bay 1579 | -7/Zion | Learned Factory interactive machine intel 1605 | -7/Zion | Rebuked by Imprinter 1624 | -7/Zion | Learned location of Recycling (-7) 1659 | -7/Zion | Discovered new exit (range 13) 1663 | -7/Zion | Identified exit to Proximity Caves 1664 | -7/Zion | Entered Proximity Caves 1798 | -6/Proximity Caves | Discovered exit to Factory (range 5) 1799 | -6/Proximity Caves | Entered Factory 1799 | -6/Factory | Evolved 2 slots: Propulsion x1, Utility x1 1800 | -6/Factory | Identified exit to Lower Caves 1800 | -6/Factory | Identified exit to Factory 1801 | -6/Factory | Loaded intel: 51 interactive machine locations 1842 | -6/Factory | Discovered exit to Factory (range 6) 1867 | -6/Factory | Discovered exit to Factory (range 14) 2100 | -6/Factory | Build established: Sprinter 2129 | -6/Factory | Entered Lower Caves 2206 | -6/Lower Caves | Encountered a Warlord checkpoint 2215 | -6/Lower Caves | Learned 12 Factory zone layouts 2254 | -6/Lower Caves | Discovered new exit (range 3) 2254 | -6/Lower Caves | Identified exit to Lower Caves 2255 | -6/Lower Caves | Entered another Lower Caves area 2269 | -6/Lower Caves | Spotted B-75 Beast 2332 | -6/Lower Caves | Learned Factory emergency access door positions 2366 | -6/Lower Caves | Encountered a Warlord checkpoint 2436 | -6/Lower Caves | Discovered new exit (range 10) 2438 | -6/Lower Caves | Identified exit to Data Miner 2444 | -6/Lower Caves | Entered Data Miner 2444 | -6/Data Miner | Discovered new exit (range 6) 2450 | -6/Data Miner | Met Data Miner 2457 | -6/Data Miner | Learned location of Section 7 (-2) 2457 | -6/Data Miner | Acquired the access code to Warlord's prototype stash 2462 | -6/Data Miner | Received God Mode back door access code from Data Miner 2468 | -6/Data Miner | Identified exit to Proximity Caves 2469 | -6/Data Miner | Entered Proximity Caves 2508 | -5/Proximity Caves | Escorted by Enhanced Grunt 2620 | -5/Proximity Caves | Learned location of 2 exits from Factory 2635 | -5/Proximity Caves | Discovered exit to Factory (range 7) 2635 | -5/Proximity Caves | Learned Factory interactive machine intel 2667 | -5/Proximity Caves | Entered Factory 2667 | -5/Factory | Accompanied by 1 ally 2667 | -5/Factory | Evolved 2 slots: Propulsion x1, Utility x1 2668 | -5/Factory | Identified exit to Factory 2671 | -5/Factory | Loaded intel: 52 interactive machine locations 2743 | -5/Factory | Discovered new exit (range 5) 2744 | -5/Factory | Identified exit to Upper Caves 2745 | -5/Factory | Entered Upper Caves 2774 | -5/Upper Caves | Learned location of Armory (-4) 2904 | -5/Upper Caves | Discovered new exit (range 16) 2908 | -5/Upper Caves | Identified exit to Upper Caves 2909 | -5/Upper Caves | Attracted the attention of an 0b10 checkpoint 2911 | -5/Upper Caves | Entered another Upper Caves area 2912 | -5/Upper Caves | Discovered exit to Factory (range 8) 2915 | -5/Upper Caves | Attracted the attention of an 0b10 checkpoint 2954 | -5/Upper Caves | Build established: Scout 3018 | -5/Upper Caves | Discovered new exit (range 12) 3021 | -5/Upper Caves | Identified exit to Warlord 3035 | -5/Upper Caves | Entered Warlord 3131 | -5/Warlord | Visited the Vortex Lab 3134 | -5/Warlord | Found Prototype Piercing Weapon 3134 | -5/Warlord | Identified Vortex Lance 3136 | -5/Warlord | Found Vortex Lance 3148 | -5/Warlord | Warlord's base attacked by MAIN.C 3170 | -5/Warlord | Found Prototype Device 3170 | -5/Warlord | Identified Minesniffer Drone Bay 3194 | -5/Warlord | Met Warlord 3196 | -5/Warlord | Opened Warlord's prototype stash 3198 | -5/Warlord | Found Prototype Device 3198 | -5/Warlord | Identified System Purifier 3232 | -5/Warlord | Found Prototype Reactor 3249 | -5/Warlord | Found Prototype Processor 3249 | -5/Warlord | Identified Spectral Analyzer 3292 | -5/Warlord | Opened side exit 3333 | -5/Warlord | Discovered new exit (range 11) 3335 | -5/Warlord | Identified exit to Proximity Caves 3335 | -5/Warlord | Entered Proximity Caves 3390 | -4/Proximity Caves | Spotted B-86 Titan 3401 | -4/Proximity Caves | Discovered exit to Factory (range 8) 3403 | -4/Proximity Caves | Entered Factory 3403 | -4/Factory | Evolved 2 slots: Power x1, Utility x1 3404 | -4/Factory | Identified exit to Extension 3404 | -4/Factory | Identified Vortex Chain Reactor 3405 | -4/Factory | Loaded intel: 54 interactive machine locations 3713 | -4/Factory | Build established: Hacker-Sprinter 3960 | -4/Factory | Spotted B-86 Titan 3984 | -4/Factory | Entered Extension 4016 | -4/Extension | Rescued a captive Derelict 4020 | -4/Extension | Rescued a captive Derelict 4079 | -4/Extension | Disrupted transfer network 4101 | -4/Extension | Spotted B-86 Titan 4103 | -4/Extension | Spotted B-86 Titan 4127 | -4/Extension | Found Quantum Capacitor 4234 | -4/Extension | Search patrols dispatched 4283 | -4/Extension | Rescued A7 4357 | -4/Extension | System corruption reached 10% 4434 | -4/Extension | Rescued a captive Derelict 4554 | -4/Extension | Rescued a captive Derelict 4589 | -4/Extension | Build established: Scavenger-Mutant 4643 | -4/Extension | Rescued a captive Derelict 4644 | -4/Extension | Rescued a captive Derelict 4734 | -4/Extension | First assault squad dispatched 4754 | -4/Extension | Incoming assault squad redirected 4826 | -4/Extension | Discovered new exit (range 10) 4827 | -4/Extension | Discovered new exit (range 6) 4847 | -4/Extension | Identified exit to Cetus 4854 | -4/Extension | Entered Cetus 4854 | -4/Cetus | Accompanied by 5 allies (A7) 4859 | -4/Cetus | Acquired a Cetus Manufacturing Module code from A7 4864 | -4/Cetus | Spotted Cetus Guard 4864 | -4/Cetus | Spotted Cetus Guard 4868 | -4/Cetus | Spotted Cetus Guard 4870 | -4/Cetus | Spotted Cetus Guard 4883 | -4/Cetus | Allies destroyed Cetus Guard 4887 | -4/Cetus | Allies destroyed Cetus Guard 4891 | -4/Cetus | Destroyed Cetus Guard 4893 | -4/Cetus | Allies destroyed Cetus Guard 4979 | -4/Cetus | Started Cetus Manufacturing Module 4988 | -4/Cetus | Escorted A7 to Cetus Mainframe 5001 | -4/Cetus | Incoming investigation squad redirected 5003 | -4/Cetus | Discovered new exit (range 24) 5004 | -4/Cetus | Manufactured an Enhanced Grunt 5029 | -4/Cetus | Manufactured an Enhanced Grunt 5054 | -4/Cetus | Manufactured an Enhanced Grunt 5079 | -4/Cetus | Manufactured an Enhanced Grunt 5104 | -4/Cetus | Manufactured an Enhanced Grunt 5184 | -4/Cetus | Extracted ID and sensor layout for unrecognized location from A7's data core 5217 | -4/Cetus | Spotted Cetus Guard 5217 | -4/Cetus | Spotted Cetus Guard 5217 | -4/Cetus | Spotted Cetus Guard 5217 | -4/Cetus | Spotted Cetus Guard 5218 | -4/Cetus | Discovered new exit (range 23) 5235 | -4/Cetus | Allies destroyed Cetus Guard 5237 | -4/Cetus | Allies destroyed Cetus Guard 5239 | -4/Cetus | Allies destroyed Cetus Guard 5241 | -4/Cetus | Allies destroyed Cetus Guard 5252 | -4/Cetus | Met Revision 17 5297 | -4/Cetus | Found Prototype Device 5297 | -4/Cetus | Identified Exp. Thermal Shield 5421 | -4/Cetus | Entered Archives 5421 | -4/Archives | Accompanied by 2 allies 5474 | -4/Archives | Discovered new exit (range 22) 5505 | -4/Archives | Discovered new exit (range 13) 5611 | -4/Archives | Discovered new exit (range 15) 6048 | -4/Archives | Entered Hub_04(d) 6048 | -4/Hub_04(d) | Accompanied by 2 allies 6099 | -4/Hub_04(d) | Discovered new exit (range 23) 6198 | -4/Hub_04(d) | Discovered new exit (range 6) 6323 | -4/Hub_04(d) | Discovered new exit (range 23) 6400 | -4/Hub_04(d) | Incoming investigation squad redirected 6738 | -4/Hub_04(d) | Entered Research 6738 | -3/Research | Evolved 2 slots: Utility x2 6776 | -3/Research | Found Unknown Device 6777 | -3/Research | Identified Antimissile System 6963 | -3/Research | Identified exit to Quarantine 7016 | -3/Research | Spotted B-86 Titan 7072 | -3/Research | Fabricated Tri-rail Accelerator (x1) 7218 | -3/Research | Garrison activated, responded to threat 7597 | -3/Research | Lost 3 parts (2n1u) 7639 | -3/Research | System corruption reached 10% 7716 | -3/Research | Released all parts (4) 7717 | -3/Research | Destroyed 10 combat bots 7720 | -3/Research | Core integrity fell below 50% 7736 | -3/Research | Core integrity fell below 20% 7750 | -3/Research | Lost 23 parts (2p7n12u2w) 7791 | -3/Research | Destroyed by S-43 Plague with Heavy Machine Gun Last Messages --------------- 07766_ Slammed into U-05 Engineer. 07766_ Destabilizing: System corrupted (+2). 07769_ Slammed into U-05 Engineer. 07770_ Slammed into H-77 Assassin. 07770_ Penetrated by Slug. 07770_ S-43 Plague destroyed. 07771_ Slammed into H-77 Assassin. 07772_ Slammed into K-01 Serf. 07772_ Penetrated by Slug. 07772_ Slug penetrates Wall. 07774_ Slammed into H-77 Assassin. 07775_ Slammed into R-10 Processor. 07775_ K-01 Serf cleans the Potential Refractor. 07776_ Slug penetrates Wall. 07776_ Penetrated by Slug. 07778_ ALERT: Hostiles spotted, dispatching reinforcements to Terminal R019. 07778_ W-44 Eye distress signal alerts nearby ally. 07781_ System corrupted: Matter fused (-5). 07783_ K-01 Serf cleans the Potential Refractor. Map ----- +----------------------------------------------------+ | ?????# ######### ??????????????????? | | ?????# """ ?????????????????????? | | ?????# /######### """ #???????????????????? | | ?????## ##???????# """ #???????????????????? | | |###### #????????# """ #???????????????????? | | = ########?# """ +???????????????????? | | ###### # # """ #???????????????????? | | ??????# # # ^ #???????????????????? | | ??????#[# + #???????????????????? | | ??????#=# # #???????????????????? | | ??????#%# #p #???????????????????? | | ??????#=# """" ?# ""Y"" ##### ####??????????? | | ??????# # """" ?# g""""" ??????????? | | ??????# # """"??# ?????????? | | ??????# #? """"??# s ?????????? | | #+#???# ########## s s ?????????? | | # ##### # ! ######### ######+###?????????????? | | / =% ! #???????# #??????????????????????? | | # ! #???????#s#??????????????????????? | | #########???????# #??????????????????????? | | ##??????????????# #??????????????????????? | | #??????????????# #??????????????????????? | | #??????????????# #??????????????????????? | | #??????????????# #??????????????????????? | | ####+###?????????????# #??????????????????????? | | # #?????????????#@#??????????????????????? | | # #?????????????# #??????????????????????? | | # #?????????????# #??????????????????????? | | # ! #?????????????# #??????????????????????? | | # #????????????? ??????????????????????? | | # #????????????? ??????????????????????? | | ###########????????????? ??????????????????????? | | ???????????????????????? ??????????????????????? | | ???????????????????????? ??????????????????????? | | ???????????????????????? w??????????????????????? | | ??????????????????????? k#?????????????????????? | | ??????????????????????? ?????????????????????? | | ??????????????????????? ?????????????????????? | | ??????????????????????? ?????????????????????? | | ??????????????????????? ?????????????????????? | | ???????????????????????#####?????????????????????? | | ?????????????????????????????????????????????????? | | ?????????????????????????????????????????????????? | | ?????????????????????????????????????????????????? | | ?????????????????????????????????????????????????? | | ?????????????????????????????????????????????????? | | ?????????????????????????????????????????????????? | | ?????????????????????????????????????????????????? | | ?????????????????????????????????????????????????? | | ?????????????????????????????????????????????????? | +----------------------------------------------------+ Best States ------------- Heat Dissipation 77 Coolant Potential 120 Energy Generation 55 Energy Capacity 700 Matter Stores 300 Matter Capacity 300 Sight Range 24 Robot Scan Range 16 Terrain Scan Range 20 Terrain Scan Density 210 Additional Mass Support 9 Armor Coverage 600 Resistance: KI 20 Resistance: TH 50 Resistance: EX 20 Resistance: EM 20 Resistance: I 20 Resistance: S 20 Resistance: P 20 Propulsion Shielding 66 Phase Shifting 10 Evasion (%) 75 Recoil Reduction 5 Kinecelleration 40 Offensive Hacking 22 Defensive Hacking 12 Authchip Count 1 Item Schematics ----------------- Lrg. Storage Unit | -7/Factory | Scanalyzed Neutrino Core | -7/Factory | Hacked Lyr. Medium Armor Plating | -7/Zion | Archive Spear | -7/Zion | Archive Antigrav System | -7/Zion | Archive Imp. Plasma Cutter | -7/Zion | Archive Chainsword | -7/Zion | Archive Spk. Medium Treads | -7/Zion | Archive Adv. Terrain Scan Processor | -7/Zion | Archive Hvy. Machine Gun | -7/Zion | Archive Mak. Flight Unit | -7/Zion | Archive Tactical Coordination Suite | -7/Zion | Archive Great Axe | -7/Zion | Archive Mak. Hammer | -7/Zion | Archive Magnetic Acceleration Cannon | -7/Zion | Archive Adv. Signal Interpreter | -7/Zion | Archive Arm. Huge Wheel | -7/Zion | Archive Combat Drone Bay | -6/Data Miner | Free Lgt. Regenerative Plating | -6/Data Miner | Free Enh. Flexi-carbon Leg | -6/Data Miner | Free Imp. Energy Well | -6/Data Miner | Free Enh. Coil Gun | -6/Data Miner | Free Adv. Medium Treads | -6/Data Miner | Free Adv. Particle Charger | -6/Data Miner | Free Hyp. Mass Driver | -6/Data Miner | Free Quantum Rifle | -6/Data Miner | Free Tri-rail Accelerator | -3/Research | Hacked Imp. Kinecellerator | -3/Research | Scanalyzed Robot Schematics ------------------ H-55 Commando | -7/Zion | Archive O-24 Administrator | -7/Zion | Archive T-07 Excavator | -7/Zion | Archive B-48 Gladiator | -6/Data Miner | Free I-36 Angel | -6/Data Miner | Free L-41 Fighter | -6/Data Miner | Free S-27 Virus | -6/Data Miner | Free O-32 Director | -6/Data Miner | Free G-67 Veteran | -6/Data Miner | Free Fabricated ------------ Tri-rail Accelerator | x1 | -3/Research Alien Tech Used ----------------- None Achievements -------------- None Challenges ------------ None Game ------ Seed ThermalSwarmProtomatter Manual? 0 Play Time 03:02:59 Cumulative 142.5 hours Start 2022.06.04 @ 09:16:17 End 2022.06.04 @ 14:46:55 Sessions 1 Manual Loads 0 Difficulty Adventurer Special Mode None Game No. 59 Rogue 57 Adventurer 2 Explorer 0 Win Type - Total 4 Types 3/0/1/0/0/0/0/0/0 Lore% 44 Gallery% 68 Achievement% 71 Wizard Run 0 Options --------- ASCII 0 Keyboard 0 Movement Numpad Keybinds 0 Fullscreen 1 Font 24/Smallcaps Map View 76x50 Tactical HUD 1 Map Filters NONE Filters LOW_CONTRAST(13,24,33) Steam 1 RUN: d1bb39e6-e46b-4c7f-9e4b-c52c2fa7bdb9